[Event "ONJK 2024 ABC"]
[Site "Velp, Netherlands"]
[Date "2024.08.05"]
[Round "5.3"]
[White "Leenen, Boyd"]
[Black "Rogozyanskiy, Alexander"]
[Result "0-1"]
[TimeControl "90 minutes + 30 seconds"]
[WhiteElo "1921"]
[BlackElo "1803"]

1. d4 {[%clk 01:30:59]} Nf6 {[%clk 01:30:59]} {[%emt 00:00:02]} 2. c4 {[%clk
01:31:23]} {[%emt 00:00:06]} e6 {[%clk 01:31:27]} {[%emt 00:00:02]} 3. Nf3
{[%clk 01:31:48]} {[%emt 00:00:04]} b6 {[%clk 01:30:40]} {[%emt 00:01:18]} 4.
Nc3 {[%clk 01:32:12]} {[%emt 00:00:06]} Bb4 {[%clk 01:31:05]} {[%emt 00:00:05]}
5. Bg5 {[%emt 00:00:06]} Bb7 {[%clk 01:30:26]} {[%emt 00:01:07]} 6. e3 {[%clk
01:32:59]} {[%emt 00:00:09]} O-O {[%clk 01:30:16]} {[%emt 00:00:39]} 7. Bd3
{[%clk 01:32:52]} {[%emt 00:00:37]} d6 {[%clk 01:29:28]} {[%emt 00:01:18]} 8.
Qc2 {[%clk 01:32:37]} {[%emt 00:00:46]} h6 {[%clk 01:28:55]} {[%emt 00:01:03]}
9. Bh4 {[%clk 01:32:59]} {[%emt 00:00:07]} Nbd7 {[%clk 01:29:02]} {[%emt
00:00:24]} 10. O-O {[%clk 01:28:30]} {[%emt 00:04:59]} Bxc3 {[%clk 01:28:28]}
{[%emt 00:01:04]} 11. bxc3 {[%clk 01:28:35]} {[%emt 00:00:25]} Qe7 {[%clk
01:28:22]} {[%emt 00:00:36]} 12. e4 {[%clk 01:27:11]} {[%emt 00:01:54]} e5
{[%clk 01:26:53]} {[%emt 00:01:58]} 13. Rae1 {[%clk 01:23:32]} {[%emt
00:04:06]} g5 {[%clk 01:23:14]} {[%emt 00:04:12]} 14. Bg3 {[%clk 01:23:47]}
{[%emt 00:00:14]} Nh5 {[%clk 01:23:02]} {[%emt 00:00:42]} 15. Qd2 {[%clk
01:16:45]} {[%emt 00:07:32]} Nf4 {[%clk 01:21:44]} {[%emt 00:01:48]} 16. Bxf4
{[%clk 01:16:41]} {[%emt 00:00:34]} exf4 {[%clk 01:17:56]} {[%emt 00:04:18]} 17.
g3 {[%clk 01:16:15]} {[%emt 00:00:55]} f5 {[%clk 01:11:11]} {[%emt 00:07:17]}
18. exf5 {[%clk 01:12:23]} {[%emt 00:04:22]} Qf7 {[%clk 01:11:12]} {[%emt
00:00:29]} 19. d5 {[%clk 01:06:34]} {[%emt 00:06:19]} Qh5 {[%clk 01:07:12]}
{[%emt 00:04:30]} 20. Be2 {[%clk 01:01:34]} {[%emt 00:05:29]} g4 {[%clk
00:59:32]} {[%emt 00:08:11]} 21. Nh4 {[%clk 01:01:32]} {[%emt 00:00:32]} f3
{[%clk 00:59:52]} {[%emt 00:00:10]} 22. Bd3 {[%clk 01:01:32]} {[%emt 00:00:29]}
Ne5 {[%clk 01:00:02]} {[%emt 00:00:20]} 23. Re4 {[%clk 00:52:05]} {[%emt
00:09:57]} Rae8 {[%clk 00:50:38]} {[%emt 00:09:55]} 24. Rf4 {[%clk 00:42:02]}
{[%emt 00:10:32]} Rf6 {[%clk 00:47:01]} {[%emt 00:04:07]} 25. Re1 {[%clk
00:39:46]} {[%emt 00:02:46]} Bc8 {[%clk 00:37:10]} {[%emt 00:10:21]} 26. Bc2
{[%clk 00:34:47]} {[%emt 00:05:29]} Ref8 {[%clk 00:34:04]} {[%emt 00:03:38]} 27.
Qd4 {[%clk 00:33:25]} {[%emt 00:01:51]} R8f7 {[%clk 00:27:45]} {[%emt
00:06:49]} 28. Rxe5 {[%clk 00:28:45]} {[%emt 00:05:10]} dxe5 {[%clk 00:27:33]}
{[%emt 00:00:42]} 29. Qxe5 {[%clk 00:29:05]} {[%emt 00:00:10]} Qg5 {[%clk
00:23:18]} {[%emt 00:04:46]} 30. Qe8+ {[%clk 00:18:05]} {[%emt 00:11:28]} Rf8
{[%clk 00:22:06]} {[%emt 00:01:44]} 31. Qe4 {[%clk 00:18:29]} {[%emt 00:00:05]}
h5 {[%clk 00:20:55]} {[%emt 00:01:41]} 32. Ng6 {[%clk 00:18:26]} {[%emt
00:00:33]} Bxf5 {[%clk 00:15:14]} {[%emt 00:06:10]} 33. Ne7+ {[%clk 00:18:33]}
{[%emt 00:00:24]} Kg7 {[%clk 00:15:10]} {[%emt 00:00:34]} 34. Nxf5+ {[%clk
00:18:54]} {[%emt 00:00:09]} Rxf5 {[%clk 00:15:37]} {[%emt 00:00:03]} 35. h4
{[%clk 00:13:44]} {[%emt 00:05:41]} gxh3 {[%clk 00:14:07]} {[%emt 00:02:00]} 36.
Rxf5 {[%clk 00:13:36]} {[%emt 00:00:37]} Rxf5 {[%clk 00:13:09]} {[%emt
00:01:28]} 37. Qxf5 {[%clk 00:13:55]} {[%emt 00:00:11]} Qd2 {[%clk 00:13:03]}
{[%emt 00:00:35]} 38. Qe5+ {[%clk 00:12:07]} {[%emt 00:02:19]} Kg8 {[%clk
00:12:44]} {[%emt 00:00:49]} 39. Qe6+ {[%clk 00:12:27]} {[%emt 00:00:09]} Kf8
{[%clk 00:11:45]} {[%emt 00:01:29]} 40. Qf5+ {[%clk 00:11:25]} {[%emt
00:01:32]} Ke7 {[%clk 00:09:27]} {[%emt 00:02:49]} 41. Qd3 {[%clk 00:11:04]}
{[%emt 00:00:50]} Qe1+ {[%clk 00:09:42]} {[%emt 00:00:15]} 42. Qf1 {[%clk
00:11:27]} {[%emt 00:00:08]} h2+ {[%clk 00:10:11]} {[%emt 00:00:01]} 0-1

[Event "ONJK 2024 ABC"]
[Site "Velp, Netherlands"]
[Date "2024.08.05"]
[Round "5.4"]
[White "Decraene, Lotus"]
[Black "Hesse, Lucas"]
[Result "1-0"]
[TimeControl "90 minutes + 30 seconds"]
[WhiteElo "1799"]
[BlackElo "1708"]

1. e4 {[%clk 01:30:58]} {[%emt 00:00:01]} d5 {[%clk 01:30:56]} {[%emt
00:00:04]} 2. exd5 {[%clk 01:31:21]} {[%emt 00:00:07]} Qxd5 {[%clk 01:31:22]}
{[%emt 00:00:04]} 3. Nc3 {[%clk 01:31:37]} {[%emt 00:00:14]} Qa5 {[%clk
01:31:48]} {[%emt 00:00:05]} 4. Nf3 {[%clk 01:31:41]} {[%emt 00:00:26]} Bg4
{[%clk 01:32:04]} {[%emt 00:00:14]} 5. h3 {[%clk 01:31:36]} {[%emt 00:00:34]}
Bh5 {[%clk 01:32:13]} {[%emt 00:00:22]} 6. Be2 {[%clk 01:31:51]} {[%emt
00:00:15]} Nf6 {[%clk 01:32:28]} {[%emt 00:00:15]} 7. O-O {[%clk 01:31:53]}
{[%emt 00:00:27]} e6 {[%clk 01:32:55]} {[%emt 00:00:04]} 8. d4 {[%clk
01:32:05]} {[%emt 00:00:17]} c6 {[%clk 01:33:21]} {[%emt 00:00:04]} 9. Bf4
{[%clk 01:31:35]} {[%emt 00:01:00]} Bb4 {[%clk 01:33:43]} {[%emt 00:00:09]} 10.
Rb1 {[%clk 01:29:37]} {[%emt 00:02:27]} Bxc3 {[%clk 01:31:11]} {[%emt
00:03:03]} 11. bxc3 {[%clk 01:29:59]} {[%emt 00:00:09]} b6 {[%clk 01:31:30]}
{[%emt 00:00:10]} 12. Rb3 {[%clk 01:16:58]} {[%emt 00:13:30]} O-O {[%clk
01:31:00]} {[%emt 00:01:00]} 13. Ne5 {[%clk 01:11:56]} {[%emt 00:05:33]} Bxe2
{[%clk 01:27:33]} {[%emt 00:03:57]} 14. Qxe2 {[%clk 01:11:43]} {[%emt
00:00:42]} Nd5 {[%clk 01:27:24]} {[%emt 00:00:40]} 15. Bd2 {[%clk 01:11:24]}
{[%emt 00:00:49]} Nc7 {[%clk 01:25:27]} {[%emt 00:02:27]} 16. c4 {[%clk
00:59:43]} {[%emt 00:12:11]} Qa6 {[%clk 01:21:35]} {[%emt 00:04:21]} 17. Rg3
{[%clk 00:56:51]} {[%emt 00:03:22]} Rd8 {[%clk 01:18:39]} {[%emt 00:03:27]} 18.
Bh6 {[%clk 00:53:20]} {[%emt 00:04:00]} g6 {[%clk 01:14:44]} {[%emt 00:04:26]}
19. Qf3 {[%clk 00:53:03]} {[%emt 00:00:46]} f5 {[%clk 01:14:23]} {[%emt
00:00:52]} 20. Qh5 {[%clk 00:52:55]} {[%emt 00:00:37]} Rd7 {[%clk 01:11:36]}
{[%emt 00:03:18]} 21. Nxg6 {[%clk 00:52:02]} {[%emt 00:01:23]} Qxc4 {[%clk
01:10:43]} {[%emt 00:01:23]} 22. Ne7+ {[%clk 00:51:43]} {[%emt 00:00:48]} Kh8
{[%clk 01:11:07]} {[%emt 00:00:07]} 23. Bg7# {[%clk 00:51:31]} {[%emt
00:00:11]} 1-0

[Event "ONJK 2024 ABC"]
[Site "Velp, Netherlands"]
[Date "2024.08.05"]
[Round "5.5"]
[White "Blokzijl, Ruben"]
[Black "Bernfeld, Ben"]
[Result "1-0"]
[TimeControl "90 minutes + 30 seconds"]
[WhiteElo "1743"]
[BlackElo "1438"]

1. e4 {[%clk 01:30:58]} {[%emt 00:00:02]} e5 {[%clk 01:30:58]} {[%emt
00:00:03]} 2. Nf3 {[%clk 01:31:21]} {[%emt 00:00:07]} Nc6 {[%clk 01:31:25]}
{[%emt 00:00:03]} 3. Bc4 {[%clk 01:31:44]} {[%emt 00:00:07]} Nf6 {[%clk
01:31:43]} {[%emt 00:00:12]} 4. d3 {[%clk 01:31:49]} {[%emt 00:00:25]} Bc5
{[%clk 01:32:00]} {[%emt 00:00:13]} 5. c3 {[%clk 01:32:05]} {[%emt 00:00:13]}
d6 {[%clk 01:31:46]} {[%emt 00:00:45]} 6. O-O {[%clk 01:32:27]} {[%emt
00:00:07]} Bg4 {[%clk 01:31:39]} {[%emt 00:00:37]} 7. Nbd2 {[%clk 01:31:21]}
{[%emt 00:01:36]} O-O {[%clk 01:31:06]} {[%emt 00:01:04]} 8. h3 {[%clk
01:29:49]} {[%emt 00:02:02]} Bh5 {[%clk 01:30:17]} {[%emt 00:01:18]} 9. a4
{[%clk 01:27:26]} {[%emt 00:02:53]} a5 {[%clk 01:28:48]} {[%emt 00:02:00]} 10.
Re1 {[%clk 01:27:26]} {[%emt 00:00:30]} Ba7 {[%clk 01:24:35]} {[%emt 00:04:43]}
11. Nf1 {[%clk 01:25:42]} {[%emt 00:02:14]} h6 {[%clk 01:21:35]} {[%emt
00:03:29]} 12. Ng3 {[%clk 01:25:20]} {[%emt 00:00:52]} Bg6 {[%clk 01:20:12]}
{[%emt 00:01:52]} 13. Bd2 {[%clk 01:16:14]} {[%emt 00:09:38]} Qd7 {[%clk
01:13:50]} {[%emt 00:06:52]} 14. Qc1 {[%clk 01:11:25]} {[%emt 00:05:19]} Kh7
{[%clk 01:07:43]} {[%emt 00:06:37]} 15. Nh4 {[%clk 01:08:21]} {[%emt 00:03:33]}
Ne7 {[%clk 00:59:40]} {[%emt 00:08:33]} 16. Nxg6 {[%clk 01:06:39]} {[%emt
00:02:12]} fxg6 {[%clk 00:53:25]} {[%emt 00:06:45]} 17. Be3 {[%clk 00:57:17]}
{[%emt 00:09:53]} d5 {[%clk 00:47:06]} {[%emt 00:06:49]} 18. exd5 {[%clk
00:56:41]} {[%emt 00:01:06]} Nexd5 {[%clk 00:39:01]} {[%emt 00:08:35]} 19. Bxa7
{[%clk 00:55:24]} {[%emt 00:01:47]} Rxa7 {[%clk 00:39:17]} {[%emt 00:00:14]} 20.
Rxe5 {[%clk 00:54:41]} {[%emt 00:01:13]} Qd6 {[%clk 00:38:02]} {[%emt
00:01:45]} 21. d4 {[%clk 00:53:47]} {[%emt 00:01:23]} c6 {[%clk 00:36:26]}
{[%emt 00:02:06]} 22. Qc2 {[%clk 00:51:49]} {[%emt 00:02:28]} Nf4 {[%clk
00:30:27]} {[%emt 00:06:30]} 23. Ne4 {[%clk 00:45:47]} {[%emt 00:06:31]} Nxe4
{[%clk 00:27:00]} {[%emt 00:03:57]} 24. Qxe4 {[%clk 00:46:09]} {[%emt
00:00:08]} b6 {[%clk 00:26:30]} {[%emt 00:01:02]} 25. Re1 {[%clk 00:41:49]}
{[%emt 00:04:45]} Qf6 {[%clk 00:22:44]} {[%emt 00:04:20]} 26. Qe3 {[%clk
00:40:35]} {[%emt 00:01:44]} Rd7 {[%clk 00:16:57]} {[%emt 00:06:17]} 27. Re4
{[%clk 00:32:28]} {[%emt 00:08:36]} Nd5 {[%clk 00:14:11]} {[%emt 00:03:17]} 28.
Bxd5 {[%clk 00:31:31]} {[%emt 00:01:27]} Rxd5 {[%clk 00:13:47]} {[%emt
00:00:54]} 29. Re6 {[%clk 00:31:33]} {[%emt 00:00:27]} Qh4 {[%clk 00:12:18]}
{[%emt 00:02:00]} 30. Rxc6 {[%clk 00:30:34]} {[%emt 00:01:29]} Rdf5 {[%clk
00:11:56]} {[%emt 00:00:52]} 31. Re2 {[%clk 00:30:18]} {[%emt 00:00:45]} Rh5
{[%clk 00:09:52]} {[%emt 00:02:35]} 32. Qe4 {[%clk 00:28:45]} {[%emt 00:01:58]}
Qg5 {[%clk 00:08:47]} {[%emt 00:01:40]} 33. Qg4 {[%clk 00:27:30]} {[%emt
00:01:44]} Qc1+ {[%clk 00:08:01]} {[%emt 00:01:17]} 34. Kh2 {[%clk 00:27:52]}
{[%emt 00:00:08]} Rg5 {[%clk 00:08:22]} {[%emt 00:00:10]} 35. Qe4 {[%clk
00:26:42]} {[%emt 00:01:38]} Rf4 {[%clk 00:08:20]} {[%emt 00:00:33]} 36. Qe8
{[%clk 00:23:35]} {[%emt 00:03:36]} Qf1 {[%clk 00:07:21]} {[%emt 00:01:30]} 37.
f3 {[%clk 00:11:58]} {[%emt 00:12:07]} Rxf3 {[%clk 00:07:15]} {[%emt 00:00:36]}
38. Qe6 {[%clk 00:12:23]} {[%emt 00:00:05]} Rxh3+ {[%clk 00:04:59]} {[%emt
00:02:45]} 39. Qxh3 {[%clk 00:11:50]} {[%emt 00:01:04]} Qxe2 {[%clk 00:05:22]}
{[%emt 00:00:07]} 40. Re6 {[%clk 00:10:38]} {[%emt 00:01:42]} Qxb2 {[%clk
00:05:13]} {[%emt 00:00:39]} 41. Re5 {[%clk 00:10:32]} {[%emt 00:00:36]} Rxe5
{[%clk 00:04:23]} {[%emt 00:01:20]} 42. dxe5 {[%clk 00:10:56]} {[%emt
00:00:05]} Qb3 {[%clk 00:04:37]} {[%emt 00:00:17]} 43. Qc8 {[%clk 00:09:26]}
{[%emt 00:02:00]} Qxa4 {[%clk 00:04:26]} {[%emt 00:00:41]} 44. e6 {[%clk
00:09:27]} {[%emt 00:00:28]} Qh4+ {[%clk 00:04:42]} {[%emt 00:00:14]} 45. Kg1
{[%clk 00:09:50]} {[%emt 00:00:08]} Qe1+ {[%clk 00:05:00]} {[%emt 00:00:13]} 46.
Kh2 {[%clk 00:10:14]} {[%emt 00:00:05]} Qxe6 {[%clk 00:05:25]} {[%emt
00:00:04]} 47. Qxe6 {[%emt 00:00:21]} 1-0

[Event "ONJK 2024 ABC"]
[Site "Velp, Netherlands"]
[Date "2024.08.05"]
[Round "5.6"]
[White "Madularea, David"]
[Black "Kool, Jesper"]
[Result "1-0"]
[TimeControl "90 minutes + 30 seconds"]
[WhiteElo "2190"]
[BlackElo "1823"]

1. e4 {[%clk 01:30:50]} {[%emt 00:00:09]} c5 {[%clk 01:30:55]} {[%emt
00:00:06]} 2. Nf3 {[%clk 01:31:02]} {[%emt 00:00:18]} e6 {[%clk 01:31:10]}
{[%emt 00:00:16]} 3. c3 {[%clk 01:31:29]} {[%emt 00:00:03]} Nf6 {[%clk
01:30:55]} {[%emt 00:00:44]} 4. e5 {[%clk 01:31:55]} {[%emt 00:00:04]} Nd5
{[%clk 01:31:18]} {[%emt 00:00:07]} 5. a3 {[%clk 01:32:22]} {[%emt 00:00:03]}
Nc6 {[%clk 01:31:11]} {[%emt 00:00:37]} 6. d4 {[%clk 01:32:47]} {[%emt
00:00:05]} cxd4 {[%clk 01:31:23]} {[%emt 00:00:19]} 7. cxd4 {[%clk 01:33:11]}
{[%emt 00:00:06]} d6 {[%clk 01:31:29]} {[%emt 00:00:24]} 8. Bd3 {[%clk
01:32:55]} {[%emt 00:00:45]} dxe5 {[%clk 01:30:36]} {[%emt 00:01:24]} 9. dxe5
{[%clk 01:33:16]} {[%emt 00:00:08]} Qc7 {[%clk 01:28:13]} {[%emt 00:02:54]} 10.
O-O {[%clk 01:30:42]} {[%emt 00:03:04]} Be7 {[%clk 01:25:19]} {[%emt 00:03:24]}
11. Qe2 {[%clk 01:29:42]} {[%emt 00:01:30]} Bd7 {[%clk 01:24:09]} {[%emt
00:01:40]} 12. b4 {[%clk 01:27:43]} {[%emt 00:02:29]} a6 {[%clk 01:16:55]}
{[%emt 00:07:44]} 13. Qe4 {[%clk 01:19:12]} {[%emt 00:09:00]} Na7 {[%clk
01:15:08]} {[%emt 00:02:18]} 14. Nd4 {[%clk 01:16:38]} {[%emt 00:03:03]} Nb5
{[%clk 01:13:57]} {[%emt 00:01:42]} 15. Bxb5 {[%clk 01:14:06]} {[%emt
00:03:02]} Bxb5 {[%clk 01:13:46]} {[%emt 00:00:41]} 16. Nxb5 {[%clk 01:13:51]}
{[%emt 00:00:45]} axb5 {[%clk 01:14:08]} {[%emt 00:00:08]} 17. Bb2 {[%clk
01:13:53]} {[%emt 00:00:28]} Rc8 {[%clk 01:11:56]} {[%emt 00:02:42]} 18. Nd2
{[%clk 01:11:06]} {[%emt 00:03:17]} O-O {[%clk 01:07:28]} {[%emt 00:04:57]} 19.
Rac1 {[%clk 01:09:42]} {[%emt 00:01:54]} Qd7 {[%clk 01:07:18]} {[%emt
00:00:41]} 20. Nb3 {[%clk 01:08:02]} {[%emt 00:02:10]} b6 {[%clk 01:06:06]}
{[%emt 00:01:42]} 21. f4 {[%clk 01:03:33]} {[%emt 00:04:58]} Rc4 {[%clk
01:03:40]} {[%emt 00:02:56]} 22. Nd4 {[%clk 00:59:57]} {[%emt 00:04:06]} Rfc8
{[%clk 01:02:39]} {[%emt 00:01:32]} 23. Rcd1 {[%clk 00:57:42]} {[%emt
00:02:44]} Rd8 {[%clk 00:55:41]} {[%emt 00:07:29]} 24. Qf3 {[%clk 00:50:20]}
{[%emt 00:07:52]} Qc8 {[%clk 00:44:35]} {[%emt 00:11:36]} 25. f5 {[%clk
00:41:49]} {[%emt 00:09:01]} Nc3 {[%clk 00:38:19]} {[%emt 00:06:46]} 26. fxe6
{[%clk 00:40:18]} {[%emt 00:02:01]} Nxd1 {[%clk 00:38:02]} {[%emt 00:00:47]} 27.
Qxf7+ {[%clk 00:40:25]} {[%emt 00:00:23]} Kh8 {[%clk 00:38:22]} {[%emt
00:00:11]} 28. Nf5 {[%clk 00:40:26]} {[%emt 00:00:28]} Bc5+ {[%clk 00:37:40]}
{[%emt 00:01:11]} 29. bxc5 {[%clk 00:40:51]} {[%emt 00:00:04]} Rg4 {[%clk
00:36:07]} {[%emt 00:02:04]} 30. e7 {[%clk 00:40:48]} {[%emt 00:00:33]} Rg8
{[%clk 00:35:13]} {[%emt 00:01:25]} 31. Rxd1 {[%clk 00:40:32]} {[%emt
00:00:47]} Qxc5+ {[%clk 00:24:33]} {[%emt 00:11:10]} 32. Kh1 {[%clk 00:39:34]}
{[%emt 00:01:27]} Qc6 {[%clk 00:24:37]} {[%emt 00:00:26]} 33. Ne3 {[%clk
00:39:26]} {[%emt 00:00:38]} 1-0

[Event "ONJK 2024 ABC"]
[Site "Velp, Netherlands"]
[Date "2024.08.05"]
[Round "5.7"]
[White "Blok, Xaveer"]
[Black "Musabayev, Maxim"]
[Result "1-0"]
[TimeControl "90 minutes + 30 seconds"]
[WhiteElo "1885"]
[BlackElo "1824"]

1. e4 {[%clk 01:30:58]} {[%emt 00:00:02]} e5 {[%clk 01:30:49]} {[%emt
00:00:12]} 2. Nf3 {[%clk 01:31:23]} {[%emt 00:00:05]} Nc6 {[%clk 01:31:14]}
{[%emt 00:00:06]} 3. d4 {[%clk 01:31:46]} {[%emt 00:00:06]} exd4 {[%clk
01:31:37]} {[%emt 00:00:07]} 4. Nxd4 {[%clk 01:32:11]} {[%emt 00:00:04]} Bc5
{[%clk 01:31:59]} {[%emt 00:00:09]} 5. Be3 {[%clk 01:32:36]} {[%emt 00:00:04]}
Qf6 {[%clk 01:32:26]} {[%emt 00:00:03]} 6. c3 {[%clk 01:32:58]} {[%emt
00:00:07]} Nge7 {[%clk 01:32:45]} {[%emt 00:00:11]} 7. Bc4 {[%clk 01:33:23]}
{[%emt 00:00:05]} d6 {[%clk 01:32:39]} {[%emt 00:00:37]} 8. O-O {[%clk
01:33:21]} {[%emt 00:00:31]} Bb6 {[%clk 01:32:56]} {[%emt 00:00:14]} 9. Kh1
{[%clk 01:29:58]} {[%emt 00:03:52]} Be6 {[%clk 01:30:38]} {[%emt 00:02:49]} 10.
Nxe6 {[%clk 01:28:14]} {[%emt 00:02:13]} fxe6 {[%clk 01:31:02]} {[%emt
00:00:06]} 11. Qh5+ {[%clk 01:18:02]} {[%emt 00:10:41]} Qf7 {[%clk 01:22:40]}
{[%emt 00:08:54]} 12. Qh3 {[%clk 01:13:42]} {[%emt 00:04:49]} d5 {[%clk
01:21:54]} {[%emt 00:01:16]} 13. Bxb6 {[%clk 01:10:45]} {[%emt 00:03:28]} axb6
{[%clk 01:21:39]} {[%emt 00:00:45]} 14. exd5 {[%clk 01:10:49]} {[%emt
00:00:26]} exd5 {[%clk 01:21:45]} {[%emt 00:00:25]} 15. Bd3 {[%clk 01:10:03]}
{[%emt 00:01:15]} h6 {[%clk 01:05:02]} {[%emt 00:17:12]} 16. Nd2 {[%clk
01:06:23]} {[%emt 00:04:11]} O-O {[%clk 01:04:25]} {[%emt 00:01:08]} 17. Nf3
{[%clk 01:05:49]} {[%emt 00:01:03]} Ng6 {[%clk 00:57:47]} {[%emt 00:07:08]} 18.
Bc2 {[%clk 00:55:05]} {[%emt 00:11:14]} Nf4 {[%clk 00:49:57]} {[%emt 00:08:19]}
19. Qg3 {[%clk 00:54:17]} {[%emt 00:01:16]} Qh5 {[%clk 00:46:20]} {[%emt
00:04:09]} 20. Rfe1 {[%clk 00:48:34]} {[%emt 00:06:13]} Rf6 {[%clk 00:46:12]}
{[%emt 00:00:38]} 21. Re3 {[%clk 00:46:11]} {[%emt 00:02:52]} Qf7 {[%clk
00:26:12]} {[%emt 00:20:31]} 22. a3 {[%clk 00:36:52]} {[%emt 00:09:49]} Nh5
{[%clk 00:24:17]} {[%emt 00:02:25]} 23. Qg4 {[%clk 00:35:35]} {[%emt 00:01:47]}
Rf8 {[%clk 00:21:19]} {[%emt 00:03:29]} 24. Rae1 {[%clk 00:33:33]} {[%emt
00:02:32]} Nf4 {[%clk 00:20:13]} {[%emt 00:01:36]} 25. Kg1 {[%clk 00:28:17]}
{[%emt 00:05:46]} Kh8 {[%clk 00:16:23]} {[%emt 00:04:20]} 26. b4 {[%clk
00:14:55]} {[%emt 00:13:52]} b5 {[%clk 00:08:42]} {[%emt 00:08:11]} 27. Bb1
{[%clk 00:13:29]} {[%emt 00:01:55]} g5 {[%clk 00:07:14]} {[%emt 00:01:59]} 28.
Ne5 {[%clk 00:13:19]} {[%emt 00:00:40]} Nxe5 {[%clk 00:05:52]} {[%emt
00:01:53]} 29. Rxe5 {[%clk 00:13:42]} {[%emt 00:00:07]} Ng6 {[%clk 00:04:51]}
{[%emt 00:01:31]} 30. Bxg6 {[%clk 00:13:10]} {[%emt 00:01:01]} Qxg6 {[%clk
00:04:16]} {[%emt 00:01:04]} 31. Re6 {[%clk 00:09:47]} {[%emt 00:03:53]} Kg7
{[%clk 00:02:12]} {[%emt 00:02:34]} 32. Qd4 {[%clk 00:05:02]} {[%emt 00:05:14]}
c6 {[%clk 00:01:36]} {[%emt 00:01:07]} 33. Rxf6 {[%clk 00:04:51]} {[%emt
00:00:41]} Qxf6 {[%clk 00:02:00]} {[%emt 00:00:06]} 34. f3 {[%clk 00:04:04]}
{[%emt 00:01:16]} Qxd4+ {[%clk 00:01:53]} {[%emt 00:00:37]} 35. cxd4 {[%clk
00:04:28]} {[%emt 00:00:06]} Rf4 {[%clk 00:01:55]} {[%emt 00:00:28]} 36. Rd1
{[%clk 00:03:32]} {[%emt 00:01:26]} g4 {[%clk 00:01:22]} {[%emt 00:01:02]} 37.
Kf2 {[%clk 00:03:30]} {[%emt 00:00:32]} Kf6 {[%clk 00:01:12]} {[%emt 00:00:41]}
38. Kg3 {[%clk 00:03:06]} {[%emt 00:00:53]} Kg5 {[%clk 00:01:26]} {[%emt
00:00:17]} 39. h3 {[%clk 00:02:43]} {[%emt 00:00:52]} h5 {[%clk 00:01:02]}
{[%emt 00:00:54]} 40. h4+ {[%clk 00:02:58]} {[%emt 00:00:14]} Kf5 {[%clk
00:01:20]} {[%emt 00:00:13]} 41. Rd3 {[%clk 00:03:07]} {[%emt 00:00:22]} b6
{[%clk 00:00:41]} {[%emt 00:01:10]} 42. Rd2 {[%clk 00:03:26]} {[%emt 00:00:10]}
gxf3 {[%clk 00:01:05]} {[%emt 00:00:05]} 43. gxf3 {[%clk 00:03:54]} {[%emt
00:00:02]} c5 {[%clk 00:01:01]} {[%emt 00:00:35]} 44. dxc5 {[%clk 00:04:06]}
{[%emt 00:00:17]} bxc5 {[%clk 00:00:59]} {[%emt 00:00:33]} 45. Rxd5+ {[%clk
00:04:30]} {[%emt 00:00:06]} Ke6 {[%clk 00:01:28]} 46. Rxc5 {[%clk 00:04:20]}
{[%emt 00:00:40]} Rd4 {[%clk 00:01:32]} {[%emt 00:00:27]} 47. Rxb5 {[%clk
00:04:13]} {[%emt 00:00:37]} 1-0